[Event "Titled Tuesday Blitz August 09 Early 2022"]
[White "Samant Aditya S"]
[Black "Rustemov, Alexander"]
[WhiteFideId "35080580"]
[BlackFideId "4119002"]
[WhiteElo "1968"]
[BlackElo "2788"]
[Result "1-0"]
[Round "04"]
[TimeControl "180+1"]
[Date "2022.08.09"]
[WhiteClock "0:00:09"]
[BlackClock "0:00:06"]

1. Nf3 {[%clk 0:03:00]}  d5 {[%clk 0:02:55]} 2. b3 {[%clk 0:03:00]}  c6 {[%clk 0:02:55]} 3. Bb2 {[%clk 0:03:00]}  Bf5 {[%clk 0:02:55]} 4. e3 {[%clk 0:03:00]}  e6 {[%clk 0:02:55]} 5. c4 {[%clk 0:03:00]}  Nd7 {[%clk 0:02:48]} 6. Nc3 {[%clk 0:03:01]}  h6 {[%clk 0:02:40]} 7. Be2 {[%clk 0:03:01]}  Ngf6 {[%clk 0:02:39]} 8. O-O {[%clk 0:03:01]}  Bd6 {[%clk 0:02:36]} 9. d3 {[%clk 0:03:01]}  Bh7 {[%clk 0:02:33]} 10. cxd5 {[%clk 0:02:50]}  exd5 {[%clk 0:02:32]} 11. a3 {[%clk 0:02:37]}  a5 {[%clk 0:02:30]} 12. e4 {[%clk 0:02:24]}  dxe4 {[%clk 0:02:22]} 13. dxe4 {[%clk 0:02:19]}  Ne5 {[%clk 0:02:22]} 14. Nd2 {[%clk 0:01:06]}  Bc7 {[%clk 0:02:04]} 15. f4 {[%clk 0:00:57]}  Nd3 {[%clk 0:02:02]} 16. Bxd3 {[%clk 0:00:54]}  Qxd3 {[%clk 0:02:02]} 17. Nc4 {[%clk 0:00:42]}  O-O-O {[%clk 0:01:52]} 18. Qxd3 {[%clk 0:00:35]}  Rxd3 {[%clk 0:01:53]} 19. e5 {[%clk 0:00:33]}  Ng4 {[%clk 0:01:41]} 20. h3 {[%clk 0:00:18]}  Ne3 {[%clk 0:01:37]} 21. Nxe3 {[%clk 0:00:19]}  Rxe3 {[%clk 0:01:38]} 22. Rad1 {[%clk 0:00:16]}  Bc2 {[%clk 0:01:35]} 23. Rde1 {[%clk 0:00:11]}  Rxe1 {[%clk 0:01:35]} 24. Rxe1 {[%clk 0:00:12]}  Bxb3 {[%clk 0:01:35]} 25. Ne4 {[%clk 0:00:13]}  Rd8 {[%clk 0:01:33]} 26. Nd6+ {[%clk 0:00:10]}  Kb8 {[%clk 0:01:28]} 27. Bd4 {[%clk 0:00:08]}  a4 {[%clk 0:01:15]} 28. Bc5 {[%clk 0:00:06]}  b6 {[%clk 0:01:13]} 29. Bb4 {[%clk 0:00:06]}  c5 {[%clk 0:01:13]} 30. Bc3 {[%clk 0:00:06]}  g6 {[%clk 0:01:07]} 31. Kf2 {[%clk 0:00:06]}  Ka7 {[%clk 0:00:42]} 32. Nb5+ {[%clk 0:00:06]}  Kb7 {[%clk 0:00:42]} 33. Nxc7 {[%clk 0:00:05]}  Kxc7 {[%clk 0:00:43]} 34. g4 {[%clk 0:00:05]}  Kc6 {[%clk 0:00:36]} 35. f5 {[%clk 0:00:05]}  gxf5 {[%clk 0:00:32]} 36. gxf5 {[%clk 0:00:06]}  b5 {[%clk 0:00:30]} 37. Ke3 {[%clk 0:00:05]}  Kd5 {[%clk 0:00:28]} 38. Kf4 {[%clk 0:00:04]}  Kc4 {[%clk 0:00:28]} 39. Ba1 {[%clk 0:00:05]}  b4 {[%clk 0:00:28]} 40. e6 {[%clk 0:00:03]}  fxe6 {[%clk 0:00:28]} 41. fxe6 {[%clk 0:00:04]}  Re8 {[%clk 0:00:27]} 42. e7 {[%clk 0:00:04]}  Kd5 {[%clk 0:00:20]} 43. Kf5 {[%clk 0:00:03]}  bxa3 {[%clk 0:00:18]} 44. Kf6 {[%clk 0:00:03]}  Kd6 {[%clk 0:00:18]} 45. Re2 {[%clk 0:00:03]}  a2 {[%clk 0:00:18]} 46. Rd2+ {[%clk 0:00:04]}  Kc6 {[%clk 0:00:18]} 47. Re2 {[%clk 0:00:04]}  Kd7 {[%clk 0:00:13]} 48. Rd2+ {[%clk 0:00:04]}  Kc6 {[%clk 0:00:13]} 49. Re2 {[%clk 0:00:05]}  Bg8 {[%clk 0:00:12]} 50. Kg7 {[%clk 0:00:03]}  Kb5 {[%clk 0:00:12]} 51. Kf6 {[%clk 0:00:03]}  a3 {[%clk 0:00:12]} 52. Rd2 {[%clk 0:00:03]}  Kb4 {[%clk 0:00:03]} 53. Rd8 {[%clk 0:00:03]}  Rxe7 {[%clk 0:00:03]} 54. Kxe7 {[%clk 0:00:04]}  Bd5 {[%clk 0:00:03]} 55. Rxd5 {[%clk 0:00:04]}  c4 {[%clk 0:00:04]} 56. Rd1 {[%clk 0:00:03]}  c3 {[%clk 0:00:03]} 57. Rc1 {[%clk 0:00:03]}  Kb3 {[%clk 0:00:02]} 58. Rxc3+ {[%clk 0:00:04]}  Kb4 {[%clk 0:00:03]} 59. Rg3 {[%clk 0:00:04]}  Ka4 {[%clk 0:00:03]} 60. Kf6 {[%clk 0:00:05]}  Kb4 {[%clk 0:00:04]} 61. h4 {[%clk 0:00:06]}  Ka4 {[%clk 0:00:05]} 62. h5 {[%clk 0:00:07]}  Kb4 {[%clk 0:00:06]} 63. Kg6 {[%clk 0:00:08]}  Ka4 {[%clk 0:00:06]} 64. Kxh6 {[%clk 0:00:09]} 1-0


[Site "https://www.chess.com"]

[Event "Titled Tuesday Blitz August 09 Early 2022"]
[White "Samarth, J Rao"]
[Black "Tuleyeva-Aketayeva, Dana"]
[WhiteFideId "46652370"]
[BlackFideId "13701932"]
[WhiteElo "1514"]
[BlackElo "1849"]
[Result "1-0"]
[Round "04"]
[TimeControl "180+1"]
[Date "2022.08.09"]
[WhiteClock "0:01:15"]
[BlackClock "0:00:07"]

1. Nf3 {[%clk 0:03:00]}  Nf6 {[%clk 0:02:57]} 2. g3 {[%clk 0:03:01]}  g6 {[%clk 0:02:57]} 3. Bg2 {[%clk 0:03:02]}  Bg7 {[%clk 0:02:58]} 4. O-O {[%clk 0:03:03]}  O-O {[%clk 0:02:59]} 5. d3 {[%clk 0:03:02]}  e6 {[%clk 0:02:56]} 6. e4 {[%clk 0:03:01]}  d5 {[%clk 0:02:54]} 7. e5 {[%clk 0:03:01]}  Nfd7 {[%clk 0:02:53]} 8. Re1 {[%clk 0:03:02]}  c5 {[%clk 0:02:51]} 9. c3 {[%clk 0:03:00]}  Nc6 {[%clk 0:02:50]} 10. d4 {[%clk 0:02:58]}  b5 {[%clk 0:02:43]} 11. Bg5 {[%clk 0:02:55]}  f6 {[%clk 0:02:06]} 12. exf6 {[%clk 0:02:53]}  Bxf6 {[%clk 0:02:07]} 13. Bh6 {[%clk 0:02:45]}  Re8 {[%clk 0:02:03]} 14. h4 {[%clk 0:02:37]}  cxd4 {[%clk 0:01:41]} 15. cxd4 {[%clk 0:02:35]}  Qb6 {[%clk 0:01:40]} 16. Nc3 {[%clk 0:02:27]}  Nxd4 {[%clk 0:01:32]} 17. Nxd5 {[%clk 0:02:24]}  Qd8 {[%clk 0:00:54]} 18. Nxf6+ {[%clk 0:01:46]}  Nxf6 {[%clk 0:00:42]} 19. Qxd4 {[%clk 0:01:47]}  Bb7 {[%clk 0:00:31]} 20. Bg5 {[%clk 0:01:40]}  Qxd4 {[%clk 0:00:21]} 21. Nxd4 {[%clk 0:01:41]}  Bxg2 {[%clk 0:00:15]} 22. Bxf6 {[%clk 0:01:35]}  Bd5 {[%clk 0:00:14]} 23. Nxb5 {[%clk 0:01:23]}  Kf7 {[%clk 0:00:12]} 24. Bc3 {[%clk 0:01:17]}  Re7 {[%clk 0:00:08]} 25. Nd6+ {[%clk 0:01:14]}  Kg8 {[%clk 0:00:08]} 26. Ne4 {[%clk 0:01:15]}  Rf8 {[%clk 0:00:07]} 27. Nf6+ {[%clk 0:01:15]}  Kf7 {[%clk 0:00:06]} 28. Nxd5 {[%clk 0:01:14]}  exd5 {[%clk 0:00:06]} 29. Rxe7+ {[%clk 0:01:15]}  Kxe7 {[%clk 0:00:07]} 30. Bb4+ {[%clk 0:01:15]} 1-0


[Site "https://www.chess.com"]

[Event "Titled Tuesday Blitz August 09 Early 2022"]
[White "Sarana, Alexey"]
[Black "Garriga Cazorla, Pere"]
[WhiteFideId "24133795"]
[BlackFideId "32011601"]
[WhiteElo "3074"]
[BlackElo "2813"]
[Result "1/2-1/2"]
[Round "04"]
[TimeControl "180+1"]
[Date "2022.08.09"]
[WhiteClock "0:00:09"]
[BlackClock "0:00:08"]

1. c4 {[%clk 0:03:00]}  c5 {[%clk 0:02:59]} 2. Nf3 {[%clk 0:03:00]}  Nf6 {[%clk 0:02:56]} 3. Nc3 {[%clk 0:02:58]}  e6 {[%clk 0:02:54]} 4. e4 {[%clk 0:02:57]}  Nc6 {[%clk 0:02:52]} 5. e5 {[%clk 0:02:57]}  Ng4 {[%clk 0:02:52]} 6. d4 {[%clk 0:02:39]}  cxd4 {[%clk 0:02:49]} 7. Nxd4 {[%clk 0:02:39]}  Ngxe5 {[%clk 0:02:43]} 8. Ndb5 {[%clk 0:02:32]}  d6 {[%clk 0:02:36]} 9. Ne4 {[%clk 0:02:14]}  d5 {[%clk 0:02:24]} 10. cxd5 {[%clk 0:02:14]}  exd5 {[%clk 0:02:25]} 11. Qxd5 {[%clk 0:02:11]}  Bb4+ {[%clk 0:02:25]} 12. Nec3 {[%clk 0:02:04]}  Qe7 {[%clk 0:02:01]} 13. Be2 {[%clk 0:01:52]}  O-O {[%clk 0:01:56]} 14. a3 {[%clk 0:01:43]}  Rd8 {[%clk 0:01:43]} 15. Qe4 {[%clk 0:01:42]}  f5 {[%clk 0:01:32]} 16. Qe3 {[%clk 0:01:37]}  Bc5 {[%clk 0:01:31]} 17. Qg3 {[%clk 0:01:32]}  Nd3+ {[%clk 0:01:03]} 18. Kf1 {[%clk 0:01:32]}  Nxc1 {[%clk 0:00:57]} 19. Rxc1 {[%clk 0:01:29]}  f4 {[%clk 0:00:53]} 20. Qf3 {[%clk 0:01:16]}  Ne5 {[%clk 0:00:50]} 21. Qe4 {[%clk 0:01:15]}  Nc6 {[%clk 0:00:35]} 22. Bf3 {[%clk 0:01:05]}  Be6 {[%clk 0:00:21]} 23. Nc7 {[%clk 0:01:00]}  Qxc7 {[%clk 0:00:21]} 24. Qxe6+ {[%clk 0:01:00]}  Kh8 {[%clk 0:00:22]} 25. Nd5 {[%clk 0:00:57]}  Qa5 {[%clk 0:00:17]} 26. Qe4 {[%clk 0:00:19]}  Re8 {[%clk 0:00:15]} 27. Qc4 {[%clk 0:00:18]}  Bb6 {[%clk 0:00:15]} 28. h4 {[%clk 0:00:13]}  Rac8 {[%clk 0:00:10]} 29. Nxb6 {[%clk 0:00:09]}  Qxb6 {[%clk 0:00:09]} 30. Qxf4 {[%clk 0:00:09]}  Qxb2 {[%clk 0:00:08]} 31. Kg1 {[%clk 0:00:08]}  Qxa3 {[%clk 0:00:08]} 32. Kh2 {[%clk 0:00:07]}  Rf8 {[%clk 0:00:08]} 33. Qg3 {[%clk 0:00:07]}  Qe7 {[%clk 0:00:08]} 34. Rhe1 {[%clk 0:00:07]}  Qf7 {[%clk 0:00:08]} 35. Bg4 {[%clk 0:00:04]}  Rcd8 {[%clk 0:00:08]} 36. f3 {[%clk 0:00:04]}  Nd4 {[%clk 0:00:09]} 37. h5 {[%clk 0:00:04]}  Qf6 {[%clk 0:00:09]} 38. Re4 {[%clk 0:00:02]}  b5 {[%clk 0:00:10]} 39. Rc7 {[%clk 0:00:02]}  b4 {[%clk 0:00:10]} 40. Rb7 {[%clk 0:00:02]}  b3 {[%clk 0:00:10]} 41. Bh3 {[%clk 0:00:02]}  a5 {[%clk 0:00:10]} 42. Rg4 {[%clk 0:00:02]}  Rg8 {[%clk 0:00:10]} 43. Rf4 {[%clk 0:00:02]}  Qe5 {[%clk 0:00:10]} 44. Rff7 {[%clk 0:00:02]}  Qxg3+ {[%clk 0:00:09]} 45. Kxg3 {[%clk 0:00:03]}  a4 {[%clk 0:00:10]} 46. h6 {[%clk 0:00:04]}  b2 {[%clk 0:00:09]} 47. hxg7+ {[%clk 0:00:04]}  Rxg7+ {[%clk 0:00:09]} 48. Rxg7 {[%clk 0:00:04]}  b1=Q {[%clk 0:00:09]} 49. Rxb1 {[%clk 0:00:05]}  Kxg7 {[%clk 0:00:09]} 50. Ra1 {[%clk 0:00:05]}  Ra8 {[%clk 0:00:10]} 51. Ra3 {[%clk 0:00:05]}  Nc2 {[%clk 0:00:09]} 52. Ra2 {[%clk 0:00:06]}  a3 {[%clk 0:00:10]} 53. Be6 {[%clk 0:00:03]}  Nb4 {[%clk 0:00:11]} 54. Ra1 {[%clk 0:00:04]}  Kf6 {[%clk 0:00:11]} 55. Bb3 {[%clk 0:00:04]}  Ke5 {[%clk 0:00:11]} 56. Kh4 {[%clk 0:00:04]}  Kd4 {[%clk 0:00:12]} 57. Bf7 {[%clk 0:00:04]}  Ra7 {[%clk 0:00:11]} 58. Be6 {[%clk 0:00:03]}  Kc3 {[%clk 0:00:10]} 59. Rg1 {[%clk 0:00:03]}  Re7 {[%clk 0:00:09]} 60. Bg8 {[%clk 0:00:03]}  a2 {[%clk 0:00:08]} 61. Bxa2 {[%clk 0:00:03]}  Nxa2 {[%clk 0:00:08]} 62. f4 {[%clk 0:00:04]}  Kd4 {[%clk 0:00:09]} 63. g4 {[%clk 0:00:04]}  Nc3 {[%clk 0:00:09]} 64. f5 {[%clk 0:00:04]}  Ne2 {[%clk 0:00:09]} 65. Rd1+ {[%clk 0:00:04]}  Ke3 {[%clk 0:00:08]} 66. Ra1 {[%clk 0:00:04]}  Nd4 {[%clk 0:00:08]} 67. Re1+ {[%clk 0:00:04]}  Ne2 {[%clk 0:00:08]} 68. Kg5 {[%clk 0:00:05]}  Rg7+ {[%clk 0:00:08]} 69. Kh6 {[%clk 0:00:04]}  Rxg4 {[%clk 0:00:08]} 70. Kxh7 {[%clk 0:00:04]}  Kf3 {[%clk 0:00:07]} 71. f6 {[%clk 0:00:04]}  Rf4 {[%clk 0:00:06]} 72. Kg7 {[%clk 0:00:04]}  Ng3 {[%clk 0:00:06]} 73. f7 {[%clk 0:00:02]}  Nf5+ {[%clk 0:00:06]} 74. Kg6 {[%clk 0:00:02]}  Nh4+ {[%clk 0:00:06]} 75. Kg7 {[%clk 0:00:02]}  Nf5+ {[%clk 0:00:07]} 76. Kh7 {[%clk 0:00:03]}  Ng3 {[%clk 0:00:05]} 77. Kg8 {[%clk 0:00:03]}  Kf2 {[%clk 0:00:03]} 78. Re6 {[%clk 0:00:02]}  Rg4+ {[%clk 0:00:03]} 79. Kh7 {[%clk 0:00:02]}  Rh4+ {[%clk 0:00:03]} 80. Kg8 {[%clk 0:00:01]}  Rg4+ {[%clk 0:00:03]} 81. Kf8 {[%clk 0:00:01]}  Nh5 {[%clk 0:00:03]} 82. Ke7 {[%clk 0:00:01]}  Rf4 {[%clk 0:00:02]} 83. Re5 {[%clk 0:00:01]}  Ng3 {[%clk 0:00:02]} 84. f8=Q {[%clk 0:00:02]}  Rxf8 {[%clk 0:00:02]} 85. Kxf8 {[%clk 0:00:03]}  Kf3 {[%clk 0:00:03]} 86. Ke7 {[%clk 0:00:03]}  Ne4 {[%clk 0:00:04]} 87. Ra5 {[%clk 0:00:03]}  Ng3 {[%clk 0:00:05]} 88. Ke6 {[%clk 0:00:04]}  Ne4 {[%clk 0:00:05]} 89. Ke5 {[%clk 0:00:04]}  Nd2 {[%clk 0:00:05]} 90. Ra4 {[%clk 0:00:05]}  Ke2 {[%clk 0:00:05]} 91. Kd4 {[%clk 0:00:04]}  Nf3+ {[%clk 0:00:05]} 92. Ke4 {[%clk 0:00:05]}  Nd2+ {[%clk 0:00:06]} 93. Kf4 {[%clk 0:00:05]}  Kd3 {[%clk 0:00:06]} 94. Ra8 {[%clk 0:00:06]}  Nc4 {[%clk 0:00:07]} 95. Rd8+ {[%clk 0:00:06]}  Kc3 {[%clk 0:00:07]} 96. Ke4 {[%clk 0:00:07]}  Nd2+ {[%clk 0:00:06]} 97. Kd5 {[%clk 0:00:07]}  Kd3 {[%clk 0:00:06]} 98. Rh8 {[%clk 0:00:08]}  Ke3 {[%clk 0:00:06]} 99. Rh3+ {[%clk 0:00:08]}  Nf3 {[%clk 0:00:07]} 100. Rg3 {[%clk 0:00:08]}  Kf4 {[%clk 0:00:07]} 101. Rg8 {[%clk 0:00:09]}  Ke3 {[%clk 0:00:08]} 102. Re8+ {[%clk 0:00:09]}  Kd3 {[%clk 0:00:08]} 103. Re4 {[%clk 0:00:09]}  Nd2 {[%clk 0:00:07]} 104. Ra4 {[%clk 0:00:09]}  Ke3 {[%clk 0:00:08]} 105. Ra3+ {[%clk 0:00:09]}  Kf4 {[%clk 0:00:08]} 106. Ke6 {[%clk 0:00:07]}  Nf3 {[%clk 0:00:08]} 107. Ke7 {[%clk 0:00:07]}  Nd4 {[%clk 0:00:08]} 108. Ra1 {[%clk 0:00:08]}  Ke4 {[%clk 0:00:08]} 109. Rd1 {[%clk 0:00:08]}  Nf3 {[%clk 0:00:08]} 110. Kd6 {[%clk 0:00:09]}  Kf4 {[%clk 0:00:09]} 111. Kd5 {[%clk 0:00:09]}  Ke3 {[%clk 0:00:09]} 112. Rc1 {[%clk 0:00:08]}  Kf4 {[%clk 0:00:10]} 113. Rc3 {[%clk 0:00:08]}  Nd2 {[%clk 0:00:08]} 114. Rc7 {[%clk 0:00:07]}  Nf3 {[%clk 0:00:08]} 115. Re7 {[%clk 0:00:07]}  Nd2 {[%clk 0:00:08]} 116. Re2 {[%clk 0:00:04]}  Nf3 {[%clk 0:00:08]} 117. Re4+ {[%clk 0:00:05]}  Kf5 {[%clk 0:00:07]} 118. Re3 {[%clk 0:00:05]}  Kf4 {[%clk 0:00:08]} 119. Rd3 {[%clk 0:00:06]}  Ng5 {[%clk 0:00:08]} 120. Rd4+ {[%clk 0:00:04]}  Ke3 {[%clk 0:00:08]} 121. Rd1 {[%clk 0:00:05]}  Nf3 {[%clk 0:00:08]} 122. Ra1 {[%clk 0:00:05]}  Kf4 {[%clk 0:00:08]} 123. Ke6 {[%clk 0:00:04]}  Ke3 {[%clk 0:00:09]} 124. Kf5 {[%clk 0:00:05]}  Nd4+ {[%clk 0:00:08]} 125. Kg4 {[%clk 0:00:05]}  Ke4 {[%clk 0:00:08]} 126. Rd1 {[%clk 0:00:06]}  Nc2 {[%clk 0:00:07]} 127. Rd2 {[%clk 0:00:05]}  Ne3+ {[%clk 0:00:08]} 128. Kg3 {[%clk 0:00:06]}  Nf5+ {[%clk 0:00:08]} 129. Kf2 {[%clk 0:00:07]}  Ke5 {[%clk 0:00:08]} 130. Kf3 {[%clk 0:00:07]}  Nd4+ {[%clk 0:00:08]} 131. Kg4 {[%clk 0:00:08]}  Ke4 {[%clk 0:00:08]} 132. Re2+ {[%clk 0:00:09]}  Nxe2 {[%clk 0:00:08]} 1/2-1/2


[Site "https://www.chess.com"]

[Event "Titled Tuesday Blitz August 09 Early 2022"]
[White "Shapiro, Daniel"]
[Black "Mahdavi, Reza"]
[WhiteFideId "2001780"]
[BlackFideId "12595926"]
[WhiteElo "2239"]
[BlackElo "2226"]
[Result "0-1"]
[Round "04"]
[TimeControl "180+1"]
[Date "2022.08.09"]
[WhiteClock "0:00:32"]
[BlackClock "0:00:30"]

1. d4 {[%clk 0:03:00]}  g6 {[%clk 0:02:57]} 2. e4 {[%clk 0:02:59]}  Bg7 {[%clk 0:02:57]} 3. Nc3 {[%clk 0:03:00]}  d6 {[%clk 0:02:53]} 4. h3 {[%clk 0:02:58]}  Nc6 {[%clk 0:02:50]} 5. Nge2 {[%clk 0:02:58]}  e5 {[%clk 0:02:49]} 6. Be3 {[%clk 0:02:58]}  Nf6 {[%clk 0:02:42]} 7. g4 {[%clk 0:02:57]}  O-O {[%clk 0:02:40]} 8. Bg2 {[%clk 0:02:57]}  Nd7 {[%clk 0:02:38]} 9. O-O {[%clk 0:02:56]}  Re8 {[%clk 0:02:32]} 10. Qd2 {[%clk 0:02:53]}  exd4 {[%clk 0:02:31]} 11. Nxd4 {[%clk 0:02:53]}  Nde5 {[%clk 0:02:29]} 12. b3 {[%clk 0:02:49]}  h5 {[%clk 0:02:23]} 13. f4 {[%clk 0:02:30]}  hxg4 {[%clk 0:02:15]} 14. fxe5 {[%clk 0:02:22]}  gxh3 {[%clk 0:02:10]} 15. Bh1 {[%clk 0:02:16]}  Nxe5 {[%clk 0:02:10]} 16. Rad1 {[%clk 0:01:57]}  Qh4 {[%clk 0:01:50]} 17. Qf2 {[%clk 0:01:44]}  h2+ {[%clk 0:01:45]} 18. Qxh2 {[%clk 0:01:36]}  Qxh2+ {[%clk 0:01:44]} 19. Kxh2 {[%clk 0:01:32]}  Ng4+ {[%clk 0:01:45]} 20. Kg1 {[%clk 0:01:05]}  Nxe3 {[%clk 0:01:46]} 21. Ndb5 {[%clk 0:01:05]}  Nxd1 {[%clk 0:01:33]} 22. Nxd1 {[%clk 0:01:00]}  Re7 {[%clk 0:01:32]} 23. Ne3 {[%clk 0:01:00]}  Be6 {[%clk 0:01:25]} 24. Nf5 {[%clk 0:00:53]}  gxf5 {[%clk 0:00:48]} 25. exf5 {[%clk 0:00:53]}  Bd7 {[%clk 0:00:45]} 26. Nxc7 {[%clk 0:00:51]}  Bd4+ {[%clk 0:00:45]} 27. Kh2 {[%clk 0:00:48]}  Rc8 {[%clk 0:00:46]} 28. Nd5 {[%clk 0:00:47]}  Re2+ {[%clk 0:00:40]} 29. Kh3 {[%clk 0:00:43]}  Rcxc2 {[%clk 0:00:39]} 30. Kg4 {[%clk 0:00:33]}  Rf2 {[%clk 0:00:32]} 31. Bf3 {[%clk 0:00:32]}  Rxf1 {[%clk 0:00:30]} 0-1


[Site "https://www.chess.com"]

[Event "Titled Tuesday Blitz August 09 Early 2022"]
[White "Shimanov, Aleksandr"]
[Black "Niyazgulova, Marina"]
[WhiteFideId "4198603"]
[BlackFideId "24142573"]
[WhiteElo "2605"]
[BlackElo "1986"]
[Result "1-0"]
[Round "04"]
[TimeControl "180+1"]
[Date "2022.08.09"]
[WhiteClock "0:00:17"]
[BlackClock "0:00:04"]

1. e4 {[%clk 0:03:00]}  d5 {[%clk 0:02:55]} 2. exd5 {[%clk 0:02:48]}  Qxd5 {[%clk 0:02:54]} 3. Nf3 {[%clk 0:02:49]}  Nf6 {[%clk 0:02:45]} 4. d4 {[%clk 0:02:47]}  c6 {[%clk 0:02:43]} 5. c4 {[%clk 0:02:47]}  Qe4+ {[%clk 0:02:36]} 6. Be2 {[%clk 0:02:46]}  Bf5 {[%clk 0:02:35]} 7. O-O {[%clk 0:02:45]}  e6 {[%clk 0:02:19]} 8. Nc3 {[%clk 0:02:41]}  Qc2 {[%clk 0:02:14]} 9. Qe1 {[%clk 0:02:41]}  Bb4 {[%clk 0:01:57]} 10. Be3 {[%clk 0:02:21]}  Qxb2 {[%clk 0:01:38]} 11. Bd2 {[%clk 0:02:21]}  O-O {[%clk 0:01:12]} 12. a4 {[%clk 0:02:13]}  Bxc3 {[%clk 0:00:41]} 13. Bxc3 {[%clk 0:02:14]}  Qc2 {[%clk 0:00:33]} 14. Bb4 {[%clk 0:01:45]}  Re8 {[%clk 0:00:31]} 15. Ra3 {[%clk 0:01:43]}  Na6 {[%clk 0:00:27]} 16. Rc3 {[%clk 0:01:27]}  Qe4 {[%clk 0:00:20]} 17. Re3 {[%clk 0:01:22]}  Qc2 {[%clk 0:00:20]} 18. Bd6 {[%clk 0:01:14]}  Qxa4 {[%clk 0:00:19]} 19. c5 {[%clk 0:01:12]}  Rad8 {[%clk 0:00:17]} 20. Ne5 {[%clk 0:01:01]}  Nb4 {[%clk 0:00:17]} 21. Bd1 {[%clk 0:00:56]}  Qa2 {[%clk 0:00:16]} 22. Bb3 {[%clk 0:00:55]}  Qb2 {[%clk 0:00:16]} 23. Qxb4 {[%clk 0:00:55]}  Nd5 {[%clk 0:00:14]} 24. Qxb7 {[%clk 0:00:54]}  Nxe3 {[%clk 0:00:14]} 25. fxe3 {[%clk 0:00:49]}  Qd2 {[%clk 0:00:11]} 26. Qxf7+ {[%clk 0:00:47]}  Kh8 {[%clk 0:00:11]} 27. Rxf5 {[%clk 0:00:26]}  Qxe3+ {[%clk 0:00:06]} 28. Rf2 {[%clk 0:00:26]}  Qxb3 {[%clk 0:00:06]} 29. h3 {[%clk 0:00:25]}  Qb1+ {[%clk 0:00:05]} 30. Kh2 {[%clk 0:00:25]}  Qe4 {[%clk 0:00:05]} 31. Rf4 {[%clk 0:00:24]}  Qe3 {[%clk 0:00:05]} 32. Rg4 {[%clk 0:00:24]}  Rg8 {[%clk 0:00:05]} 33. Qh5 {[%clk 0:00:18]}  h6 {[%clk 0:00:04]} 34. Nf7+ {[%clk 0:00:17]}  Kh7 {[%clk 0:00:04]} 35. Qg6# {[%clk 0:00:17]} 1-0


[Site "https://www.chess.com"]

[Event "Titled Tuesday Blitz August 09 Early 2022"]
[White "Shohat, Yotam"]
[Black "Siva Mahadevan"]
[WhiteFideId "2813955"]
[BlackFideId "25043153"]
[WhiteElo "2119"]
[BlackElo "2203"]
[Result "0-1"]
[Round "04"]
[TimeControl "180+1"]
[Date "2022.08.09"]
[WhiteClock "0:00:04"]
[BlackClock "0:01:38"]

1. e4 {[%clk 0:03:00]}  c5 {[%clk 0:02:59]} 2. Nf3 {[%clk 0:03:00]}  Nc6 {[%clk 0:03:00]} 3. Bb5 {[%clk 0:03:00]}  Na5 {[%clk 0:03:01]} 4. d4 {[%clk 0:02:50]}  a6 {[%clk 0:03:01]} 5. Bd3 {[%clk 0:02:42]}  cxd4 {[%clk 0:03:02]} 6. Nxd4 {[%clk 0:02:42]}  e6 {[%clk 0:03:02]} 7. O-O {[%clk 0:02:37]}  Nf6 {[%clk 0:03:03]} 8. e5 {[%clk 0:02:31]}  Nd5 {[%clk 0:03:03]} 9. Qg4 {[%clk 0:02:13]}  d6 {[%clk 0:02:53]} 10. exd6 {[%clk 0:02:04]}  Qxd6 {[%clk 0:02:54]} 11. Nf3 {[%clk 0:01:52]}  Bd7 {[%clk 0:02:46]} 12. Nc3 {[%clk 0:01:35]}  Nxc3 {[%clk 0:02:38]} 13. bxc3 {[%clk 0:01:36]}  h5 {[%clk 0:02:32]} 14. Qg5 {[%clk 0:01:24]}  Qc5 {[%clk 0:02:29]} 15. Qg3 {[%clk 0:01:16]}  h4 {[%clk 0:02:26]} 16. Nxh4 {[%clk 0:00:47]}  Bd6 {[%clk 0:02:22]} 17. Qg4 {[%clk 0:00:39]}  O-O-O {[%clk 0:01:59]} 18. Nf3 {[%clk 0:00:38]}  Bc6 {[%clk 0:01:58]} 19. Be3 {[%clk 0:00:37]}  Bxf3 {[%clk 0:01:53]} 20. gxf3 {[%clk 0:00:36]}  Qxc3 {[%clk 0:01:46]} 21. Bd4 {[%clk 0:00:24]}  Qc7 {[%clk 0:01:41]} 22. h3 {[%clk 0:00:20]}  f5 {[%clk 0:01:40]} 23. Qg6 {[%clk 0:00:10]}  Rh6 {[%clk 0:01:40]} 24. Qg5 {[%clk 0:00:07]}  Bf4 {[%clk 0:01:39]} 25. Qxg7 {[%clk 0:00:03]}  Qxg7+ {[%clk 0:01:38]} 26. Bxg7 {[%clk 0:00:04]}  Rg8 {[%clk 0:01:38]} 0-1


[Site "https://www.chess.com"]